fUST/lending_fUST_20260418
["ID","MTS","AMOUNT","RATE_DAILY","PERIOD"]
[420707075,1776463832646,-3162.05196372,6.69e-05,2]
[420707076,1776463832657,-399.29698368,6.69e-05,2]
[420707179,1776463841179,-1125.34589103,6.69e-05,2]
[420707213,1776463847061,-313.30516157,6.69e-05,2]
[420707214,1776463847071,-515.0,6.69e-05,2]
[420707215,1776463847081,-289.85403938,6.844e-05,2]
[420707216,1776463847091,-6518.81880441,6.965e-05,2]
[420707217,1776463847227,-5025.35199452,6.965e-05,2]
[420707230,1776463945056,500.0,0.00024586,120]
[420707231,1776464158019,500.0,0.00024586,120]
[420707232,1776464238364,1115.79,0.00024658,120]
[420707233,1776464244437,500.0,0.00024614,120]
[420707234,1776464266105,415.0,0.00024614,120]
[420707235,1776464355065,203.0,0.00024614,120]
[420707236,1776464464746,610.7154,0.00024614,120]
[420707237,1776464464779,610.7154,0.00024614,120]
[420707238,1776464464817,610.7154,0.00024614,120]
[420707239,1776464465003,610.7154,0.00024614,120]
[420707240,1776464465038,610.7154,0.00024614,120]
[420707241,1776464465069,610.7154,0.00024614,120]
[420707242,1776464465104,610.7154,0.00024614,120]
[420707243,1776464465139,610.7154,0.00024614,120]
[420707244,1776464465178,610.7154,0.00024614,120]
[420707245,1776464465208,610.7154,0.00024614,120]
[420707246,1776464465242,610.7154,0.00024614,120]
[420707247,1776464465273,610.7154,0.00024614,120]
[420707248,1776464465307,610.7154,0.00024614,120]
[420707249,1776464465338,610.7154,0.00024614,120]
[420707250,1776464465372,610.7154,0.00024614,120]
[420707251,1776464465414,610.7154,0.00024614,120]
[420707252,1776464465453,610.7154,0.00024614,120]
[420707253,1776464465492,610.7154,0.00024614,120]
[420707254,1776464465555,610.7154,0.00024614,120]
[420707255,1776464465597,610.7154,0.00024614,120]
[420707256,1776464465636,610.7154,0.00024614,120]
[420707257,1776464465667,610.7154,0.00024614,120]
[420707258,1776464465708,610.7154,0.00024614,120]
[420707259,1776464465740,610.7154,0.00024614,120]
[420707260,1776464465786,610.7154,0.00024614,120]
[420707261,1776464465821,610.7154,0.00024614,120]
[420707262,1776464465863,610.7154,0.00024614,120]
[420707263,1776464465897,610.7154,0.00024614,120]
[420707264,1776464465934,610.7154,0.00024614,120]
[420707265,1776464475855,610.7158,0.00024614,120]
[420707266,1776464475916,610.7158,0.00024614,120]
[420707267,1776464544654,500.0,0.00024674,120]
[420707268,1776464547538,170.0,0.0002261,120]
[420707269,1776464548795,170.0,0.00023741,120]
[420707277,1776464844949,500.0,0.00024674,120]
[420707279,1776464972158,500.0,0.00024658,120]
[420707280,1776464994088,500.0,0.00024658,120]
[420707281,1776465004743,500.0,0.00024575,120]
[420707282,1776465030055,288.21602751,0.00024658,120]
[420707330,1776465031960,-754.67316901,5.921e-05,2]
[420707332,1776465031970,-353.01290538,5.981e-05,2]
[420707334,1776465031981,-515.6773213,5.981e-05,2]
[420707354,1776465036164,500.0,0.00024658,120]
[420707357,1776465038237,-4131.30977332,5.981e-05,2]
[420707358,1776465038246,-507.0,6.041e-05,2]
[420707359,1776465038256,-314.0108409,6.072e-05,2]
[420707360,1776465038265,-223.0,6.545e-05,2]
[420707361,1776465038275,-455.6259834,6.548e-05,2]
[420707362,1776465038284,-173.8244521,6.582e-05,2]
[420707363,1776465038293,-334.755921,6.786e-05,2]
[420707364,1776465038302,-300.0,6.964e-05,2]
[420707365,1776465038311,-5319.12379212,6.965e-05,2]
[420707366,1776465038330,-4212.38728895,6.965e-05,2]
[420707367,1776465038339,-327.53977028,6.965e-05,2]
[420707368,1776465038348,-334.755921,7.072e-05,2]
[420707369,1776465038357,-300.0,7.103e-05,2]
[420707370,1776465038367,-300.0,7.103e-05,2]
[420707371,1776465038376,-300.0,7.103e-05,2]
[420707372,1776465038387,-300.0,7.103e-05,2]
[420707373,1776465038396,-300.0,7.103e-05,2]
[420707374,1776465038405,-300.0,7.103e-05,2]
[420707375,1776465038415,-300.0,7.103e-05,2]
[420707376,1776465038425,-300.0,7.103e-05,2]
[420707377,1776465038434,-300.0,7.103e-05,2]
[420707378,1776465038444,-300.0,7.103e-05,2]
[420707379,1776465038454,-300.0,7.103e-05,2]
[420707380,1776465038463,-300.0,7.103e-05,2]
[420707381,1776465038473,-300.0,7.103e-05,2]
[420707382,1776465038482,-300.0,7.103e-05,2]
[420707383,1776465038492,-300.0,7.103e-05,2]
[420707385,1776465038501,-600.0,7.244e-05,2]
[420707386,1776465038511,-334.755921,7.358e-05,2]
[420707387,1776465038520,-151.0,7.372e-05,2]
[420707388,1776465038530,-501.43065135,7.473e-05,2]
[420707389,1776465038540,-500.0,7.473e-05,2]
[420707390,1776465038549,-500.0,7.473e-05,2]
[420707391,1776465038558,-500.0,7.473e-05,2]
[420707392,1776465038568,-500.0,7.473e-05,2]
[420707393,1776465038577,-500.0,7.473e-05,2]
[420707394,1776465038586,-310.58964247,7.473e-05,2]
[420707395,1776465038596,-500.0,7.493e-05,2]
[420707396,1776465038605,-500.0,7.493e-05,2]
[420707397,1776465038616,-411.65629959,7.493e-05,2]
[420707398,1776465038626,-500.0,7.493e-05,2]
[420707399,1776465038635,-500.0,7.493e-05,2]
[420707400,1776465038644,-500.0,7.493e-05,2]
[420707401,1776465038653,-500.0,7.493e-05,2]
[420707402,1776465038662,-500.0,7.493e-05,2]
[420707403,1776465038672,-500.0,7.493e-05,2]
[420707404,1776465038683,-500.0,7.493e-05,2]
[420707405,1776465038693,-446.80414885,7.493e-05,2]
[420707406,1776465038702,-500.0,7.493e-05,2]
[420707407,1776465038712,-516.92524257,7.493e-05,2]
[420707408,1776465038721,-500.0,7.493e-05,2]
[420707409,1776465038731,-500.0,7.493e-05,2]
[420707410,1776465038740,-500.0,7.493e-05,2]
[420707411,1776465038750,-500.0,7.493e-05,2]
[420707412,1776465038759,-500.0,7.493e-05,2]
[420707413,1776465038768,-500.0,7.493e-05,2]
[420707414,1776465038778,-500.0,7.493e-05,2]
[420707415,1776465038788,-500.0,7.493e-05,2]
[420707416,1776465038798,-500.0,7.493e-05,2]
[420707417,1776465038807,-500.0,7.493e-05,2]
[420707418,1776465038818,-500.0,7.493e-05,2]
[420707419,1776465038828,-389.01749334,7.493e-05,2]
[420707420,1776465038838,-500.0,7.493e-05,2]
[420707421,1776465038851,-500.0,7.493e-05,2]
[420707422,1776465038862,-500.0,7.493e-05,2]
[420707423,1776465038875,-500.0,7.493e-05,2]
[420707424,1776465038885,-500.0,7.493e-05,2]
[420707425,1776465038896,-500.0,7.493e-05,2]
[420707426,1776465038905,-500.0,7.493e-05,2]
[420707427,1776465038915,-500.0,7.493e-05,2]
[420707428,1776465038924,-500.0,7.493e-05,2]
[420707429,1776465038934,-500.0,7.493e-05,2]
[420707430,1776465038943,-500.0,7.493e-05,2]
[420707431,1776465038954,-284.62824747,7.493e-05,2]
[420707432,1776465038964,-500.0,7.493e-05,2]
[420707433,1776465038974,-500.0,7.494e-05,2]
[420707434,1776465038983,-500.0,7.494e-05,2]
[420707435,1776465038992,-500.0,7.494e-05,2]
[420707436,1776465039001,-500.0,7.494e-05,2]
[420707437,1776465039010,-500.0,7.494e-05,2]
[420707438,1776465039020,-500.0,7.494e-05,2]
[420707439,1776465039029,-500.0,7.494e-05,2]
[420707440,1776465039039,-500.0,7.494e-05,2]
[420707441,1776465039048,-233.19791786,7.494e-05,2]
[420707442,1776465039057,-500.0,7.494e-05,2]
[420707443,1776465039066,-500.0,7.494e-05,2]
[420707444,1776465039075,-515.22937207,7.494e-05,2]
[420707445,1776465039085,-500.0,7.494e-05,2]
[420707446,1776465039095,-500.0,7.494e-05,2]
[420707447,1776465039104,-500.0,7.494e-05,2]
[420707448,1776465039113,-500.0,7.494e-05,2]
[420707449,1776465039124,-4964.69226722,7.495e-05,2]
[420707450,1776465039159,-4139.67013678,7.495e-05,2]
[420707451,1776465039170,-1508252.17322484,7.495e-05,2]
[420707469,1776465043180,-1000.0,7.495e-05,2]
[420707470,1776465043238,-10144.40258361,7.495e-05,2]
[420707476,1776465046652,-871.0,7.495e-05,2]
[420707480,1776465145007,500.0,0.00024674,120]
[420707484,1776465437401,500.0,0.00024539,120]
[420707485,1776465545308,394.0,0.00024539,120]
[420707487,1776465644513,193.0,0.00024539,120]
[420707488,1776465744465,500.0,0.00024539,120]
[420707490,1776465780079,442.0,0.00024539,120]
[420707492,1776465870109,820.0,0.00024539,120]
[420707494,1776465934667,254.0,0.00024539,120]
[420707495,1776465942286,488.0,0.00024539,120]
[420707500,1776466010291,152.0,0.00024539,120]
[420707501,1776466044615,500.0,0.00024539,120]
[420707502,1776466100803,152.0,0.00024539,120]
[420707503,1776466211694,5472.06,0.00024539,120]
[420707536,1776466232426,-5000.0,6.552e-05,2]
[420707537,1776466232436,-513.0,6.552e-05,2]
[420707538,1776466232445,-322.57444596,6.686e-05,2]
[420707539,1776466232455,-375.64121807,6.868e-05,2]
[420707540,1776466232464,-1502.56487226,6.868e-05,2]
[420707541,1776466232474,-300.0,6.879e-05,2]
[420707542,1776466232483,-1612.21995273,6.88e-05,2]
[420707543,1776466232493,-3377.39019162,6.907e-05,2]
[420707544,1776466232502,-3244.24264774,6.98e-05,2]
[420707545,1776466232511,-300.0,7.032e-05,2]
[420707546,1776466232521,-300.0,7.032e-05,2]
[420707547,1776466232531,-300.0,7.032e-05,2]
[420707549,1776466232541,-300.0,7.032e-05,2]
[420707551,1776466232551,-300.0,7.032e-05,2]
[420707552,1776466232561,-300.0,7.032e-05,2]
[420707554,1776466232571,-300.0,7.032e-05,2]
[420707556,1776466232580,-300.0,7.032e-05,2]
[420707558,1776466232590,-300.0,7.032e-05,2]
[420707560,1776466232600,-300.0,7.032e-05,2]
[420707561,1776466232609,-300.0,7.032e-05,2]
[420707562,1776466232618,-300.0,7.032e-05,2]
[420707563,1776466232627,-300.0,7.032e-05,2]
[420707564,1776466232637,-300.0,7.032e-05,2]
[420707565,1776466232646,-300.0,7.032e-05,2]
[420707566,1776466232655,-4876.26534276,7.08e-05,2]
[420707567,1776466232665,-375.13937066,7.139e-05,2]
[420707568,1776466232674,-1499.05692517,7.139e-05,2]
[420707569,1776466232683,-529.11633412,7.23e-05,2]
[420707570,1776466232692,-2116.46533646,7.23e-05,2]
[420707571,1776466232701,-3029.87560913,7.269e-05,2]
[420707574,1776466238496,-5000.0,7.067e-05,2]
[420707575,1776466238507,-1727.4093509,7.269e-05,2]
[420707576,1776466238517,-500.0,7.295e-05,2]
[420707577,1776466238527,-500.0,7.295e-05,2]
[420707578,1776466238536,-500.0,7.295e-05,2]
[420707579,1776466238546,-500.0,7.295e-05,2]
[420707580,1776466238556,-423.89910295,7.295e-05,2]
[420707581,1776466238565,-500.0,7.295e-05,2]
[420707582,1776466238575,-500.0,7.295e-05,2]
[420707583,1776466238585,-500.0,7.295e-05,2]
[420707584,1776466238594,-500.0,7.295e-05,2]
[420707585,1776466238606,-500.0,7.295e-05,2]
[420707586,1776466238616,-500.0,7.295e-05,2]
[420707587,1776466238625,-438.53379432,7.295e-05,2]
[420707588,1776466238635,-321.0019437,7.295e-05,2]
[420707589,1776466238644,-587.18091639,7.295e-05,2]
[420707590,1776466238654,-58230.59174329,7.296e-05,2]
[420707638,1776466246678,-16637.42980715,7.296e-05,2]
[420707643,1776466345003,500.0,0.00024539,120]
[420707645,1776466364600,319.39259509,0.00024539,120]
[420707646,1776466364915,319.39259509,0.00024539,120]
[420707647,1776466365347,319.39259509,0.00024539,120]
[420707652,1776466459331,1009.89335245,0.00024658,120]
[420707656,1776466587668,-200.0,7.007e-05,2]
[420707657,1776466587714,-280.0,7.007e-05,2]
[420707658,1776466587779,-239.0,7.007e-05,2]
[420707659,1776466644747,500.0,0.00024534,120]
[420707660,1776466645061,281.0,7.078e-05,2]
[420707666,1776466847979,1180.96034355,0.00024534,120]
[420707667,1776466850089,374.0,0.00024534,120]
[420707669,1776466936849,184.0,0.00024534,120]
[420707670,1776466945340,500.0,0.00024534,120]
[420707672,1776467024419,59381.77,0.00024534,120]
[420707677,1776467076769,420.0,0.00024534,120]
[420707678,1776467083198,150.786,0.00024658,120]
[420707679,1776467172655,779.0,0.00024534,120]
[420707682,1776467242874,464.0,0.00024534,120]
[420707683,1776467244765,500.0,0.00024534,120]
[420707685,1776467316408,153.0,0.00024534,120]
[420707690,1776467401144,152.0,0.00024534,120]
[420707720,1776467432489,-675.42364712,5.667e-05,2]
[420707723,1776467432500,-545.83712939,5.667e-05,2]
[420707728,1776467432541,-410.71337545,5.667e-05,2]
[420707730,1776467432552,-618.10058986,5.667e-05,2]
[420707735,1776467432595,-1949.35081786,5.667e-05,2]
[420707850,1776467440275,-800.57444032,5.667e-05,2]
[420707851,1776467440284,-502.0,5.667e-05,2]
[420707852,1776467440294,-574.20083467,5.725e-05,2]
[420707853,1776467440307,-2969.07537831,5.725e-05,2]
[420707854,1776467440320,-1762.5341908,5.725e-05,2]
[420707855,1776467440332,-334.00815202,5.725e-05,2]
[420707857,1776467440342,-300.0,5.779e-05,2]
[420707858,1776467440351,-300.0,5.779e-05,2]
[420707860,1776467440360,-300.0,5.779e-05,2]
[420707862,1776467440370,-300.0,5.779e-05,2]
[420707864,1776467440380,-178.27944702,5.779e-05,2]
[420707866,1776467440391,-121.72055298,5.779e-05,2]
[420707868,1776467440400,-300.0,5.779e-05,2]
[420707870,1776467440410,-154.10442732,5.779e-05,2]
[420707879,1776467441389,-145.89557268,5.779e-05,2]
[420707880,1776467441398,-300.0,5.779e-05,2]
[420707881,1776467441407,-300.0,5.779e-05,2]
[420707882,1776467441416,-300.0,5.779e-05,2]
[420707883,1776467441424,-146.77665803,5.779e-05,2]
[420707885,1776467441437,-153.22334197,5.779e-05,2]
[420707887,1776467441447,-300.0,5.779e-05,2]
[420707888,1776467441457,-300.0,5.779e-05,2]
[420707889,1776467441467,-300.0,5.779e-05,2]
[420707890,1776467441478,-300.0,5.779e-05,2]
[420707891,1776467441490,-300.0,6.449e-05,2]
[420707892,1776467441499,-322.99273708,6.482e-05,2]
[420707893,1776467441508,-325.2695583,6.582e-05,2]
[420707894,1776467441517,-3760.12032864,6.645e-05,2]
[420707916,1776467443784,-2913.16195028,6.645e-05,2]
[420707917,1776467443793,-167.37796,6.714e-05,2]
[420707918,1776467443803,-500.0,6.895e-05,2]
[420707919,1776467443813,-304.1074462,6.896e-05,2]
[420707920,1776467443824,-20290.438993,6.896e-05,2]
[420707921,1776467443835,-2653.8385751,6.896e-05,2]
[420707922,1776467443891,-200.02759118,6.896e-05,2]
[420707927,1776467444735,173.45893111,0.00024534,120]
[420707928,1776467444769,257.88771641,0.00024534,120]
[420707929,1776467444804,267.26718429,0.00024534,120]
[420707930,1776467445111,257.88771641,0.00024534,120]
[420707931,1776467445152,267.26718429,0.00024534,120]
[420707932,1776467445184,173.45893111,0.00024534,120]
[420707933,1776467445398,257.88771641,0.00024534,120]
[420707934,1776467445431,267.26718429,0.00024534,120]
[420707935,1776467445464,173.45893111,0.00024534,120]
[420707936,1776467446021,267.26718429,0.00024534,120]
[420707937,1776467446055,173.45893111,0.00024534,120]
[420707943,1776467446325,173.45893111,0.00024534,120]
[420707944,1776467446358,267.26718429,0.00024534,120]
[420707947,1776467446620,173.45893111,0.00024534,120]
[420707949,1776467446663,267.26718429,0.00024534,120]
[420707958,1776467446924,-51831.55585526,6.896e-05,2]
[420707959,1776467446959,267.26718429,0.00024534,120]
[420707960,1776467446983,-2404.99956709,6.896e-05,2]
[420707961,1776467544764,500.0,0.00024534,120]
[420707962,1776467557405,240.0,0.00024658,120]
[420707963,1776467564629,310.70433158,0.00024534,120]
[420707964,1776467565019,310.70433158,0.00024534,120]
[420707965,1776467565329,310.70433158,0.00024534,120]
[420707966,1776467565654,310.70433158,0.00024534,120]
[420707967,1776467565908,310.70433158,0.00024534,120]
[420707968,1776467566509,310.70433158,0.00024534,120]
[420707969,1776467566826,310.70433158,0.00024534,120]
[420707970,1776467567117,310.70433158,0.00024534,120]
[420707971,1776467623805,192.0,0.00024658,120]
[420707972,1776467627485,168.0,7.116e-05,30]
[420707974,1776467844083,500.0,0.00024516,120]
[420707976,1776467882040,500.0,0.00024516,120]
[420707978,1776468060960,151.0,0.00024658,120]
[420707981,1776468132792,151.0,0.00024658,120]
[420707982,1776468139191,355.0,0.00024561,120]
[420707983,1776468144490,500.0,0.00024561,120]
[420707984,1776468242499,174.0,0.00024561,120]
[420707986,1776468380554,399.0,0.00024562,120]
[420707987,1776468444305,500.0,0.00024562,120]
[420707988,1776468471028,740.0,0.00024562,120]
[420707990,1776468542269,441.0,0.00024562,120]
[420707991,1776468607840,153.0,0.00024562,120]
[420708026,1776468631785,-1009.63662955,5.847e-05,2]
[420708032,1776468631839,-296.92009493,5.847e-05,2]
[420708034,1776468631850,-527.68893863,5.847e-05,2]
[420708114,1776468643057,-250.79506289,5.847e-05,2]
[420708115,1776468643089,-2614.959274,5.847e-05,2]
[420708145,1776468648202,-300.0,5.847e-05,2]
[420708146,1776468648212,-455.6611417,5.906e-05,2]
[420708147,1776468648221,-505.0,5.906e-05,2]
[420708148,1776468648231,-337.53180125,6.333e-05,2]
[420708149,1776468648240,-223.0,6.447e-05,2]
[420708150,1776468648250,-3131.51832715,6.448e-05,2]
[420708151,1776468648259,-300.0,6.547e-05,2]
[420708152,1776468648268,-6325.94742098,6.548e-05,2]
[420708153,1776468648278,-480.829,6.562e-05,2]
[420708154,1776468648287,-500.0,6.59e-05,2]
[420708155,1776468648297,-500.0,6.59e-05,2]
[420708156,1776468648306,-500.0,6.59e-05,2]
[420708157,1776468648316,-500.0,6.59e-05,2]
[420708158,1776468648327,-500.0,6.59e-05,2]
[420708159,1776468648337,-500.0,6.59e-05,2]
[420708160,1776468648346,-500.0,6.59e-05,2]
[420708161,1776468648356,-500.0,6.59e-05,2]
[420708162,1776468648365,-500.0,6.59e-05,2]
[420708163,1776468648374,-500.0,6.59e-05,2]
[420708164,1776468648383,-593.65525729,6.59e-05,2]
[420708165,1776468648393,-500.0,6.59e-05,2]
[420708166,1776468648403,-500.0,6.59e-05,2]
[420708167,1776468648412,-500.0,6.59e-05,2]
[420708168,1776468648421,-500.0,6.59e-05,2]
[420708169,1776468648430,-500.0,6.59e-05,2]
[420708170,1776468648439,-500.0,6.59e-05,2]
[420708171,1776468648449,-500.0,6.59e-05,2]
[420708172,1776468648458,-500.0,6.59e-05,2]
[420708173,1776468648468,-500.0,6.59e-05,2]
[420708174,1776468648477,-500.0,6.59e-05,2]
[420708175,1776468648487,-500.0,6.59e-05,2]
[420708176,1776468648496,-500.0,6.59e-05,2]
[420708177,1776468648505,-500.0,6.59e-05,2]
[420708178,1776468648514,-500.0,6.59e-05,2]
[420708179,1776468648524,-500.0,6.59e-05,2]
[420708180,1776468648535,-500.0,6.59e-05,2]
[420708181,1776468648544,-500.0,6.59e-05,2]
[420708182,1776468648554,-500.0,6.59e-05,2]
[420708183,1776468648562,-500.0,6.59e-05,2]
[420708184,1776468648571,-500.0,6.59e-05,2]
[420708185,1776468648581,-500.0,6.59e-05,2]
[420708186,1776468648591,-500.0,6.59e-05,2]
[420708187,1776468648600,-500.0,6.59e-05,2]
[420708188,1776468648611,-500.0,6.59e-05,2]
[420708189,1776468648621,-500.0,6.59e-05,2]
[420708190,1776468648631,-630.2731079,6.59e-05,2]
[420708191,1776468648641,-500.0,6.59e-05,2]
[420708192,1776468648650,-500.0,6.59e-05,2]
[420708193,1776468648660,-500.0,6.59e-05,2]
[420708194,1776468648670,-500.0,6.59e-05,2]
[420708195,1776468648679,-500.0,6.59e-05,2]
[420708196,1776468648690,-500.0,6.59e-05,2]
[420708197,1776468648700,-500.0,6.59e-05,2]
[420708198,1776468648710,-500.0,6.59e-05,2]
[420708199,1776468648721,-500.0,6.59e-05,2]
[420708200,1776468648730,-500.0,6.59e-05,2]
[420708201,1776468648739,-500.0,6.59e-05,2]
[420708202,1776468648749,-500.0,6.59e-05,2]
[420708203,1776468648759,-500.0,6.59e-05,2]
[420708204,1776468648770,-500.0,6.59e-05,2]
[420708205,1776468648779,-500.0,6.59e-05,2]
[420708206,1776468648789,-500.0,6.59e-05,2]
[420708207,1776468648798,-500.0,6.59e-05,2]
[420708208,1776468648808,-500.0,6.59e-05,2]
[420708209,1776468648819,-500.0,6.59e-05,2]
[420708210,1776468648829,-500.0,6.59e-05,2]
[420708211,1776468648840,-500.0,6.59e-05,2]
[420708212,1776468648851,-500.0,6.59e-05,2]
[420708213,1776468648861,-500.0,6.59e-05,2]
[420708214,1776468648871,-500.0,6.59e-05,2]
[420708215,1776468648881,-500.0,6.59e-05,2]
[420708216,1776468648892,-500.0,6.59e-05,2]
[420708217,1776468648901,-500.0,6.59e-05,2]
[420708218,1776468648910,-630.61932735,6.59e-05,2]
[420708219,1776468648921,-500.0,6.59e-05,2]
[420708220,1776468648931,-500.0,6.59e-05,2]
[420708221,1776468648942,-500.0,6.59e-05,2]
[420708222,1776468648951,-500.0,6.59e-05,2]
[420708223,1776468648962,-500.0,6.59e-05,2]
[420708224,1776468648972,-500.0,6.593e-05,2]
[420708225,1776468648983,-500.0,6.593e-05,2]
[420708226,1776468648993,-500.0,6.593e-05,2]
[420708227,1776468649002,-500.0,6.593e-05,2]
[420708228,1776468649012,-500.0,6.593e-05,2]
[420708229,1776468649020,-500.0,6.593e-05,2]
[420708230,1776468649030,-500.0,6.593e-05,2]
[420708231,1776468649039,-500.0,6.593e-05,2]
[420708232,1776468649048,-500.0,6.593e-05,2]
[420708233,1776468649058,-434.9882935,6.593e-05,2]
[420708234,1776468649067,-500.0,6.593e-05,2]
[420708235,1776468649077,-500.0,6.593e-05,2]
[420708236,1776468649086,-500.0,6.593e-05,2]
[420708237,1776468649096,-500.0,6.593e-05,2]
[420708238,1776468649105,-500.0,6.593e-05,2]
[420708239,1776468649115,-500.0,6.593e-05,2]
[420708240,1776468649125,-500.0,6.593e-05,2]
[420708241,1776468649134,-500.0,6.593e-05,2]
[420708242,1776468649145,-500.0,6.593e-05,2]
[420708243,1776468649154,-250.0,6.593e-05,2]
[420708244,1776468649164,-79584.69060518,6.594e-05,2]
[420708245,1776468649174,-325.2695583,6.596e-05,2]
[420708246,1776468649187,-686.10606249,6.596e-05,2]
[420708247,1776468649197,-6457.37611004,6.74e-05,2]
[420708248,1776468649207,-686.10606249,6.761e-05,2]
[420708249,1776468649218,-500.0,6.795e-05,2]
[420708250,1776468649228,-300.0,6.865e-05,2]
[420708251,1776468649237,-300.0,6.865e-05,28]
[420708252,1776468649247,-500.0,6.896e-05,2]
[420708253,1776468649257,-686.10606249,6.927e-05,2]
[420708254,1776468649266,-2322.7633851,6.953e-05,2]
[420708255,1776468649275,-63811.0246147,6.953e-05,2]
[420708256,1776468649286,-167.37796,6.997e-05,2]
[420708257,1776468649295,-600.0,7.033e-05,2]
[420708258,1776468649305,-300.0,7.033e-05,2]
[420708259,1776468649314,-300.0,7.033e-05,2]
[420708260,1776468649324,-300.0,7.033e-05,2]
[420708261,1776468649333,-300.0,7.033e-05,2]
[420708262,1776468649342,-300.0,7.033e-05,2]
[420708263,1776468649352,-300.0,7.033e-05,2]
[420708264,1776468649361,-300.0,7.033e-05,2]
[420708265,1776468649371,-300.0,7.033e-05,2]
[420708266,1776468649380,-300.0,7.033e-05,2]
[420708267,1776468649393,-300.0,7.033e-05,2]
[420708268,1776468649402,-300.0,7.033e-05,2]
[420708269,1776468649411,-300.0,7.033e-05,2]
[420708270,1776468649420,-300.0,7.033e-05,2]
[420708271,1776468649430,-300.0,7.033e-05,2]
[420708272,1776468649439,-300.0,7.033e-05,2]
[420708273,1776468649449,-686.10606249,7.092e-05,2]
[420708274,1776468649459,-359.69128128,7.116e-05,2]
[420708275,1776468649468,-682.02668221,7.118e-05,2]
[420708276,1776468649477,-2728.10672882,7.118e-05,2]
[420708277,1776468649485,-6132.10189971,7.118e-05,2]
[420708278,1776468649496,-626.98567842,7.118e-05,2]
[420708279,1776468649505,-2505.43477097,7.118e-05,2]
[420708280,1776468649514,-507.48404103,7.118e-05,2]
[420708281,1776468649524,-2027.90622795,7.118e-05,2]
[420708282,1776468649534,-286.772182,7.119e-05,2]
[420708283,1776468649545,-181.37807593,7.202e-05,2]
[420708284,1776468649556,-537.6845,7.202e-05,2]
[420708285,1776468649566,-1957.856,7.202e-05,2]
[420708286,1776468649577,-537.6845,7.202e-05,2]
[420708287,1776468649586,-2150.738,7.202e-05,2]
[420708288,1776468649597,-13879.4080911,7.222e-05,2]
[420708289,1776468649608,-557.5788265,7.257e-05,2]
[420708290,1776468649618,-2030.296672,7.257e-05,2]
[420708291,1776468649627,-686.10606249,7.257e-05,2]
[420708292,1776468649637,-167.37796,7.279e-05,2]
[420708293,1776468649647,-197.99590511,7.282e-05,2]
[420708294,1776468649655,-578.20924308,7.312e-05,2]
[420708295,1776468649667,-2105.41764886,7.312e-05,2]
[420708296,1776468649677,-257.00093487,7.312e-05,2]
[420708297,1776468649686,-599.60298507,7.367e-05,2]
[420708298,1776468649695,-2183.31810187,7.367e-05,2]
[420708299,1776468649706,-621.78829552,7.422e-05,2]
[420708300,1776468649716,-2264.10087164,7.422e-05,2]
[420708301,1776468649725,-287.2487059,7.428e-05,2]
[420708302,1776468649734,-500.0,7.473e-05,2]
[420708303,1776468649743,-644.79446246,7.477e-05,2]
[420708304,1776468649752,-2347.87260389,7.477e-05,2]
[420708305,1776468649762,-668.65185757,7.532e-05,2]
[420708306,1776468649771,-2434.74389024,7.532e-05,2]
[420708307,1776468649782,-167.37796,7.562e-05,2]
[420708308,1776468649791,-693.3919763,7.587e-05,2]
[420708309,1776468649802,-2524.82941417,7.587e-05,2]
[420708310,1776468649811,-6971.26486369,7.61e-05,2]
[420708311,1776468649821,-719.04747942,7.642e-05,2]
[420708312,1776468649831,-1171.54688515,7.642e-05,2]
[420708313,1776468649840,-745.65223616,7.697e-05,2]
[420708314,1776468649850,-500.0,7.721e-05,2]
[420708315,1776468649861,-480.00000005,7.721e-05,2]
[420708316,1776468649870,-720.0,7.736e-05,2]
[420708317,1776468649880,-2322.7633851,7.738e-05,2]
[420708318,1776468649889,-151.0,7.74e-05,2]
[420708319,1776468649898,-557.5788265,7.75e-05,2]
[420708320,1776468649908,-2230.315306,7.75e-05,2]